{"text_format":"1","workbook":"xlsx","n_sheets":1,"sheets":["sgRNA Oligo生成模板"],"not_rendered":{"charts":0,"images":2,"macros":1,"external_links":0,"defined_names":0,"comments":0,"pivot_tables":0},"unopened":[],"bounds":{"document_bytes":16777216,"sheet_cells":100000,"rows_first":2000,"rows_last":500,"rows_between":2000,"halvings":0,"cell_chars":16384,"cell_head_chars":4096},"cells_cut":0,"cells_raw":0,"read":"whole","date_system":"1900"}

{"sheet":"sgRNA Oligo生成模板","index":0,"n_rows":103,"n_cols":10,"rows_kept":103,"cut":false,"hidden":false,"merged":[[0,0,0,3],[0,4,0,6]]}
["上海快易吉生物科技有限公司\n邮箱：sales@qegene.cn\n地址：上海松江区西林南路5号",null,null,null,"     使用说明： 此表格可以快速自动批量生成shRNA快速克隆试剂盒所需的两条Oligo DNA片段，方便您发送至DNA合成公司合成片段，仅需填入基因名称和shRNA序列即可自动生成Oligo DNA序列。使用此表格必须开启宏。"]
["序号","基因名称","shRNA靶向序列","Oligo F：","Oligo F (5’——>3’)","碱基数","Oligo R","Oligo R (5’——>3’)",null,"碱基数"]
["示例","NCT shRNA","GCGCGATAGCGCTAATAATTT",{"$f":"B3&\"-F\"","v":"NCT shRNA-F"},{"$f":"\"cctctcaacactgg\"&seqrecom(C3)&\"ttttttctcgacctcgagacaaat\"","v":"cctctcaacactggAAATTATTAGCGCTATCGCGCttttttctcgacctcgagacaaat"},{"$f":"LEN(E3)","v":59},{"$f":"B3&\"-R\"","v":"NCT shRNA-R"},{"$f":"RIGHT(C3,5)&\"ccagtgttgagagg\"&seqrecom(C3)&\"cggtgtttcgtcctttcc\"","v":"AATTTccagtgttgagaggAAATTATTAGCGCTATCGCGCcggtgtttcgtcctttcc"},null,{"$f":"LEN(H3)","v":58}]
[1,null,null,{"$f":"B4&\"-F\"","v":"-F"},{"$f":"\"cctctcaacactgg\"&seqrecom(C4)&\"ttttttctcgacctcgagacaaat\"","v":"cctctcaacactggttttttctcgacctcgagacaaat"},{"$f":"LEN(E4)","v":38},{"$f":"B4&\"-R\"","v":"-R"},{"$f":"RIGHT(C4,5)&\"ccagtgttgagagg\"&seqrecom(C4)&\"cggtgtttcgtcctttcc\"","v":"ccagtgttgagaggcggtgtttcgtcctttcc"},null,{"$f":"LEN(H4)","v":32}]
[2,null,null,"-F",{"$f":"\"cctctcaacactgg\"&seqrecom(C5)&\"ttttttctcgacctcgagacaaat\"","v":"cctctcaacactggttttttctcgacctcgagacaaat"},38,"-R",{"$f":"RIGHT(C5,5)&\"ccagtgttgagagg\"&seqrecom(C5)&\"cggtgtttcgtcctttcc\"","v":"ccagtgttgagaggcggtgtttcgtcctttcc"},null,32]
[3,null,null,"-F",{"$f":"\"cctctcaacactgg\"&seqrecom(C6)&\"ttttttctcgacctcgagacaaat\"","v":"cctctcaacactggttttttctcgacctcgagacaaat"},38,"-R",{"$f":"RIGHT(C6,5)&\"ccagtgttgagagg\"&seqrecom(C6)&\"cggtgtttcgtcctttcc\"","v":"ccagtgttgagaggcggtgtttcgtcctttcc"},null,32]
[4,null,null,"-F",{"$f":"\"cctctcaacactgg\"&seqrecom(C7)&\"ttttttctcgacctcgagacaaat\"","v":"cctctcaacactggttttttctcgacctcgagacaaat"},38,"-R",{"$f":"RIGHT(C7,5)&\"ccagtgttgagagg\"&seqrecom(C7)&\"cggtgtttcgtcctttcc\"","v":"ccagtgttgagaggcggtgtttcgtcctttcc"},null,32]
[5,null,null,"-F",{"$f":"\"cctctcaacactgg\"&seqrecom(C8)&\"ttttttctcgacctcgagacaaat\"","v":"cctctcaacactggttttttctcgacctcgagacaaat"},38,"-R",{"$f":"RIGHT(C8,5)&\"ccagtgttgagagg\"&seqrecom(C8)&\"cggtgtttcgtcctttcc\"","v":"ccagtgttgagaggcggtgtttcgtcctttcc"},null,32]
[6,null,null,"-F",{"$f":"\"cctctcaacactgg\"&seqrecom(C9)&\"ttttttctcgacctcgagacaaat\"","v":"cctctcaacactggttttttctcgacctcgagacaaat"},38,"-R",{"$f":"RIGHT(C9,5)&\"ccagtgttgagagg\"&seqrecom(C9)&\"cggtgtttcgtcctttcc\"","v":"ccagtgttgagaggcggtgtttcgtcctttcc"},null,32]
[7,null,null,"-F",{"$f":"\"cctctcaacactgg\"&seqrecom(C10)&\"ttttttctcgacctcgagacaaat\"","v":"cctctcaacactggttttttctcgacctcgagacaaat"},38,"-R",{"$f":"RIGHT(C10,5)&\"ccagtgttgagagg\"&seqrecom(C10)&\"cggtgtttcgtcctttcc\"","v":"ccagtgttgagaggcggtgtttcgtcctttcc"},null,32]
[8,null,null,"-F",{"$f":"\"cctctcaacactgg\"&seqrecom(C11)&\"ttttttctcgacctcgagacaaat\"","v":"cctctcaacactggttttttctcgacctcgagacaaat"},38,"-R",{"$f":"RIGHT(C11,5)&\"ccagtgttgagagg\"&seqrecom(C11)&\"cggtgtttcgtcctttcc\"","v":"ccagtgttgagaggcggtgtttcgtcctttcc"},null,32]
[9,null,null,"-F",{"$f":"\"cctctcaacactgg\"&seqrecom(C12)&\"ttttttctcgacctcgagacaaat\"","v":"cctctcaacactggttttttctcgacctcgagacaaat"},38,"-R",{"$f":"RIGHT(C12,5)&\"ccagtgttgagagg\"&seqrecom(C12)&\"cggtgtttcgtcctttcc\"","v":"ccagtgttgagaggcggtgtttcgtcctttcc"},null,32]
[10,null,null,"-F",{"$f":"\"cctctcaacactgg\"&seqrecom(C13)&\"ttttttctcgacctcgagacaaat\"","v":"cctctcaacactggttttttctcgacctcgagacaaat"},38,"-R",{"$f":"RIGHT(C13,5)&\"ccagtgttgagagg\"&seqrecom(C13)&\"cggtgtttcgtcctttcc\"","v":"ccagtgttgagaggcggtgtttcgtcctttcc"},null,32]
[11,null,null,"-F",{"$f":"\"cctctcaacactgg\"&seqrecom(C14)&\"ttttttctcgacctcgagacaaat\"","v":"cctctcaacactggttttttctcgacctcgagacaaat"},38,"-R",{"$f":"RIGHT(C14,5)&\"ccagtgttgagagg\"&seqrecom(C14)&\"cggtgtttcgtcctttcc\"","v":"ccagtgttgagaggcggtgtttcgtcctttcc"},null,32]
[12,null,null,"-F",{"$f":"\"cctctcaacactgg\"&seqrecom(C15)&\"ttttttctcgacctcgagacaaat\"","v":"cctctcaacactggttttttctcgacctcgagacaaat"},38,"-R",{"$f":"RIGHT(C15,5)&\"ccagtgttgagagg\"&seqrecom(C15)&\"cggtgtttcgtcctttcc\"","v":"ccagtgttgagaggcggtgtttcgtcctttcc"},null,32]
[13,null,null,"-F",{"$f":"\"cctctcaacactgg\"&seqrecom(C16)&\"ttttttctcgacctcgagacaaat\"","v":"cctctcaacactggttttttctcgacctcgagacaaat"},38,"-R",{"$f":"RIGHT(C16,4)&\"ccagtgttgagagg\"&seqrecom(C16)&\"cggtgtttcgtcctttcc\"","v":"ccagtgttgagaggcggtgtttcgtcctttcc"},null,32]
[14,null,null,"-F",{"$f":"\"cctctcaacactgg\"&seqrecom(C17)&\"ttttttctcgacctcgagacaaat\"","v":"cctctcaacactggttttttctcgacctcgagacaaat"},38,"-R",{"$f":"RIGHT(C17,4)&\"ccagtgttgagagg\"&seqrecom(C17)&\"cggtgtttcgtcctttcc\"","v":"ccagtgttgagaggcggtgtttcgtcctttcc"},null,32]
[15,null,null,"-F",{"$f":"\"cctctcaacactgg\"&seqrecom(C18)&\"ttttttctcgacctcgagacaaat\"","v":"cctctcaacactggttttttctcgacctcgagacaaat"},38,"-R",{"$f":"RIGHT(C18,5)&\"ccagtgttgagagg\"&seqrecom(C18)&\"cggtgtttcgtcctttcc\"","v":"ccagtgttgagaggcggtgtttcgtcctttcc"},null,32]
[16,null,null,"-F",{"$f":"\"cctctcaacactgg\"&seqrecom(C19)&\"ttttttctcgacctcgagacaaat\"","v":"cctctcaacactggttttttctcgacctcgagacaaat"},38,"-R",{"$f":"RIGHT(C19,4)&\"ccagtgttgagagg\"&seqrecom(C19)&\"cggtgtttcgtcctttcc\"","v":"ccagtgttgagaggcggtgtttcgtcctttcc"},null,32]
[17,null,null,"-F",{"$f":"\"cctctcaacactgg\"&seqrecom(C20)&\"ttttttctcgacctcgagacaaat\"","v":"cctctcaacactggttttttctcgacctcgagacaaat"},38,"-R",{"$f":"RIGHT(C20,4)&\"ccagtgttgagagg\"&seqrecom(C20)&\"cggtgtttcgtcctttcc\"","v":"ccagtgttgagaggcggtgtttcgtcctttcc"},null,32]
[18,null,null,"-F",{"$f":"\"cctctcaacactgg\"&seqrecom(C21)&\"ttttttctcgacctcgagacaaat\"","v":"cctctcaacactggttttttctcgacctcgagacaaat"},38,"-R",{"$f":"RIGHT(C21,4)&\"ccagtgttgagagg\"&seqrecom(C21)&\"cggtgtttcgtcctttcc\"","v":"ccagtgttgagaggcggtgtttcgtcctttcc"},null,32]
[19,null,null,"-F",{"$f":"\"cctctcaacactgg\"&seqrecom(C22)&\"ttttttctcgacctcgagacaaat\"","v":"cctctcaacactggttttttctcgacctcgagacaaat"},38,"-R",{"$f":"RIGHT(C22,4)&\"ccagtgttgagagg\"&seqrecom(C22)&\"cggtgtttcgtcctttcc\"","v":"ccagtgttgagaggcggtgtttcgtcctttcc"},null,32]
[20,null,null,"-F",{"$f":"\"cctctcaacactgg\"&seqrecom(C23)&\"ttttttctcgacctcgagacaaat\"","v":"cctctcaacactggttttttctcgacctcgagacaaat"},38,"-R",{"$f":"RIGHT(C23,4)&\"ccagtgttgagagg\"&seqrecom(C23)&\"cggtgtttcgtcctttcc\"","v":"ccagtgttgagaggcggtgtttcgtcctttcc"},null,32]
[21,null,null,"-F",{"$f":"\"cctctcaacactgg\"&seqrecom(C24)&\"ttttttctcgacctcgagacaaat\"","v":"cctctcaacactggttttttctcgacctcgagacaaat"},38,"-R",{"$f":"RIGHT(C24,4)&\"ccagtgttgagagg\"&seqrecom(C24)&\"cggtgtttcgtcctttcc\"","v":"ccagtgttgagaggcggtgtttcgtcctttcc"},null,32]
[22,null,null,"-F",{"$f":"\"cctctcaacactgg\"&seqrecom(C25)&\"ttttttctcgacctcgagacaaat\"","v":"cctctcaacactggttttttctcgacctcgagacaaat"},38,"-R",{"$f":"RIGHT(C25,4)&\"ccagtgttgagagg\"&seqrecom(C25)&\"cggtgtttcgtcctttcc\"","v":"ccagtgttgagaggcggtgtttcgtcctttcc"},null,32]
[23,null,null,"-F",{"$f":"\"cctctcaacactgg\"&seqrecom(C26)&\"ttttttctcgacctcgagacaaat\"","v":"cctctcaacactggttttttctcgacctcgagacaaat"},38,"-R",{"$f":"RIGHT(C26,4)&\"ccagtgttgagagg\"&seqrecom(C26)&\"cggtgtttcgtcctttcc\"","v":"ccagtgttgagaggcggtgtttcgtcctttcc"},null,32]
[24,null,null,"-F",{"$f":"\"cctctcaacactgg\"&seqrecom(C27)&\"ttttttctcgacctcgagacaaat\"","v":"cctctcaacactggttttttctcgacctcgagacaaat"},38,"-R",{"$f":"RIGHT(C27,4)&\"ccagtgttgagagg\"&seqrecom(C27)&\"cggtgtttcgtcctttcc\"","v":"ccagtgttgagaggcggtgtttcgtcctttcc"},null,32]
[25,null,null,"-F",{"$f":"\"cctctcaacactgg\"&seqrecom(C28)&\"ttttttctcgacctcgagacaaat\"","v":"cctctcaacactggttttttctcgacctcgagacaaat"},38,"-R",{"$f":"RIGHT(C28,4)&\"ccagtgttgagagg\"&seqrecom(C28)&\"cggtgtttcgtcctttcc\"","v":"ccagtgttgagaggcggtgtttcgtcctttcc"},null,32]
[26,null,null,"-F",{"$f":"\"cctctcaacactgg\"&seqrecom(C29)&\"ttttttctcgacctcgagacaaat\"","v":"cctctcaacactggttttttctcgacctcgagacaaat"},38,"-R",{"$f":"RIGHT(C29,4)&\"ccagtgttgagagg\"&seqrecom(C29)&\"cggtgtttcgtcctttcc\"","v":"ccagtgttgagaggcggtgtttcgtcctttcc"},null,32]
[27,null,null,"-F",{"$f":"\"cctctcaacactgg\"&seqrecom(C30)&\"ttttttctcgacctcgagacaaat\"","v":"cctctcaacactggttttttctcgacctcgagacaaat"},38,"-R",{"$f":"RIGHT(C30,4)&\"ccagtgttgagagg\"&seqrecom(C30)&\"cggtgtttcgtcctttcc\"","v":"ccagtgttgagaggcggtgtttcgtcctttcc"},null,32]
[28,null,null,"-F",{"$f":"\"cctctcaacactgg\"&seqrecom(C31)&\"ttttttctcgacctcgagacaaat\"","v":"cctctcaacactggttttttctcgacctcgagacaaat"},38,"-R",{"$f":"RIGHT(C31,4)&\"ccagtgttgagagg\"&seqrecom(C31)&\"cggtgtttcgtcctttcc\"","v":"ccagtgttgagaggcggtgtttcgtcctttcc"},null,32]
[29,null,null,"-F",{"$f":"\"cctctcaacactgg\"&seqrecom(C32)&\"ttttttctcgacctcgagacaaat\"","v":"cctctcaacactggttttttctcgacctcgagacaaat"},38,"-R",{"$f":"RIGHT(C32,4)&\"ccagtgttgagagg\"&seqrecom(C32)&\"cggtgtttcgtcctttcc\"","v":"ccagtgttgagaggcggtgtttcgtcctttcc"},null,32]
[30,null,null,"-F",{"$f":"\"cctctcaacactgg\"&seqrecom(C33)&\"ttttttctcgacctcgagacaaat\"","v":"cctctcaacactggttttttctcgacctcgagacaaat"},38,"-R",{"$f":"RIGHT(C33,4)&\"ccagtgttgagagg\"&seqrecom(C33)&\"cggtgtttcgtcctttcc\"","v":"ccagtgttgagaggcggtgtttcgtcctttcc"},null,32]
[31,null,null,"-F",{"$f":"\"cctctcaacactgg\"&seqrecom(C34)&\"ttttttctcgacctcgagacaaat\"","v":"cctctcaacactggttttttctcgacctcgagacaaat"},38,"-R",{"$f":"RIGHT(C34,4)&\"ccagtgttgagagg\"&seqrecom(C34)&\"cggtgtttcgtcctttcc\"","v":"ccagtgttgagaggcggtgtttcgtcctttcc"},null,32]
[32,null,null,"-F",{"$f":"\"cctctcaacactgg\"&seqrecom(C35)&\"ttttttctcgacctcgagacaaat\"","v":"cctctcaacactggttttttctcgacctcgagacaaat"},38,"-R",{"$f":"RIGHT(C35,4)&\"ccagtgttgagagg\"&seqrecom(C35)&\"cggtgtttcgtcctttcc\"","v":"ccagtgttgagaggcggtgtttcgtcctttcc"},null,32]
[33,null,null,"-F",{"$f":"\"cctctcaacactgg\"&seqrecom(C36)&\"ttttttctcgacctcgagacaaat\"","v":"cctctcaacactggttttttctcgacctcgagacaaat"},38,"-R",{"$f":"RIGHT(C36,4)&\"ccagtgttgagagg\"&seqrecom(C36)&\"cggtgtttcgtcctttcc\"","v":"ccagtgttgagaggcggtgtttcgtcctttcc"},null,32]
[34,null,null,"-F",{"$f":"\"cctctcaacactgg\"&seqrecom(C37)&\"ttttttctcgacctcgagacaaat\"","v":"cctctcaacactggttttttctcgacctcgagacaaat"},38,"-R",{"$f":"RIGHT(C37,4)&\"ccagtgttgagagg\"&seqrecom(C37)&\"cggtgtttcgtcctttcc\"","v":"ccagtgttgagaggcggtgtttcgtcctttcc"},null,32]
[35,null,null,{"$f":"B38&\"-F\"","v":"-F"},{"$f":"\"cctctcaacactgg\"&seqrecom(C38)&\"ttttttctcgacctcgagacaaat\"","v":"cctctcaacactggttttttctcgacctcgagacaaat"},38,"-R",{"$f":"RIGHT(C38,4)&\"ccagtgttgagagg\"&seqrecom(C38)&\"cggtgtttcgtcctttcc\"","v":"ccagtgttgagaggcggtgtttcgtcctttcc"},null,32]
[36,null,null,"-F",{"$f":"\"cctctcaacactgg\"&seqrecom(C39)&\"ttttttctcgacctcgagacaaat\"","v":"cctctcaacactggttttttctcgacctcgagacaaat"},38,"-R",{"$f":"RIGHT(C39,4)&\"ccagtgttgagagg\"&seqrecom(C39)&\"cggtgtttcgtcctttcc\"","v":"ccagtgttgagaggcggtgtttcgtcctttcc"},null,32]
[37,null,null,"-F",{"$f":"\"cctctcaacactgg\"&seqrecom(C40)&\"ttttttctcgacctcgagacaaat\"","v":"cctctcaacactggttttttctcgacctcgagacaaat"},38,"-R",{"$f":"RIGHT(C40,4)&\"ccagtgttgagagg\"&seqrecom(C40)&\"cggtgtttcgtcctttcc\"","v":"ccagtgttgagaggcggtgtttcgtcctttcc"},null,32]
[38,null,null,"-F",{"$f":"\"cctctcaacactgg\"&seqrecom(C41)&\"ttttttctcgacctcgagacaaat\"","v":"cctctcaacactggttttttctcgacctcgagacaaat"},38,"-R",{"$f":"RIGHT(C41,4)&\"ccagtgttgagagg\"&seqrecom(C41)&\"cggtgtttcgtcctttcc\"","v":"ccagtgttgagaggcggtgtttcgtcctttcc"},null,32]
[39,null,null,"-F",{"$f":"\"cctctcaacactgg\"&seqrecom(C42)&\"ttttttctcgacctcgagacaaat\"","v":"cctctcaacactggttttttctcgacctcgagacaaat"},38,"-R",{"$f":"RIGHT(C42,4)&\"ccagtgttgagagg\"&seqrecom(C42)&\"cggtgtttcgtcctttcc\"","v":"ccagtgttgagaggcggtgtttcgtcctttcc"},null,32]
[40,null,null,"-F",{"$f":"\"cctctcaacactgg\"&seqrecom(C43)&\"ttttttctcgacctcgagacaaat\"","v":"cctctcaacactggttttttctcgacctcgagacaaat"},38,"-R",{"$f":"RIGHT(C43,4)&\"ccagtgttgagagg\"&seqrecom(C43)&\"cggtgtttcgtcctttcc\"","v":"ccagtgttgagaggcggtgtttcgtcctttcc"},null,32]
[41,null,null,"-F",{"$f":"\"cctctcaacactgg\"&seqrecom(C44)&\"ttttttctcgacctcgagacaaat\"","v":"cctctcaacactggttttttctcgacctcgagacaaat"},38,"-R",{"$f":"RIGHT(C44,4)&\"ccagtgttgagagg\"&seqrecom(C44)&\"cggtgtttcgtcctttcc\"","v":"ccagtgttgagaggcggtgtttcgtcctttcc"},null,32]
[42,null,null,"-F",{"$f":"\"cctctcaacactgg\"&seqrecom(C45)&\"ttttttctcgacctcgagacaaat\"","v":"cctctcaacactggttttttctcgacctcgagacaaat"},38,"-R",{"$f":"RIGHT(C45,4)&\"ccagtgttgagagg\"&seqrecom(C45)&\"cggtgtttcgtcctttcc\"","v":"ccagtgttgagaggcggtgtttcgtcctttcc"},null,32]
[43,null,null,"-F",{"$f":"\"cctctcaacactgg\"&seqrecom(C46)&\"ttttttctcgacctcgagacaaat\"","v":"cctctcaacactggttttttctcgacctcgagacaaat"},38,"-R",{"$f":"RIGHT(C46,4)&\"ccagtgttgagagg\"&seqrecom(C46)&\"cggtgtttcgtcctttcc\"","v":"ccagtgttgagaggcggtgtttcgtcctttcc"},null,32]
[44,null,null,"-F",{"$f":"\"cctctcaacactgg\"&seqrecom(C47)&\"ttttttctcgacctcgagacaaat\"","v":"cctctcaacactggttttttctcgacctcgagacaaat"},38,"-R",{"$f":"RIGHT(C47,4)&\"ccagtgttgagagg\"&seqrecom(C47)&\"cggtgtttcgtcctttcc\"","v":"ccagtgttgagaggcggtgtttcgtcctttcc"},null,32]
[45,null,null,"-F",{"$f":"\"cctctcaacactgg\"&seqrecom(C48)&\"ttttttctcgacctcgagacaaat\"","v":"cctctcaacactggttttttctcgacctcgagacaaat"},38,"-R",{"$f":"RIGHT(C48,4)&\"ccagtgttgagagg\"&seqrecom(C48)&\"cggtgtttcgtcctttcc\"","v":"ccagtgttgagaggcggtgtttcgtcctttcc"},null,32]
[46,null,null,"-F",{"$f":"\"cctctcaacactgg\"&seqrecom(C49)&\"ttttttctcgacctcgagacaaat\"","v":"cctctcaacactggttttttctcgacctcgagacaaat"},38,"-R",{"$f":"RIGHT(C49,4)&\"ccagtgttgagagg\"&seqrecom(C49)&\"cggtgtttcgtcctttcc\"","v":"ccagtgttgagaggcggtgtttcgtcctttcc"},null,32]
[47,null,null,"-F",{"$f":"\"cctctcaacactgg\"&seqrecom(C50)&\"ttttttctcgacctcgagacaaat\"","v":"cctctcaacactggttttttctcgacctcgagacaaat"},38,"-R",{"$f":"RIGHT(C50,4)&\"ccagtgttgagagg\"&seqrecom(C50)&\"cggtgtttcgtcctttcc\"","v":"ccagtgttgagaggcggtgtttcgtcctttcc"},null,32]
[48,null,null,"-F",{"$f":"\"cctctcaacactgg\"&seqrecom(C51)&\"ttttttctcgacctcgagacaaat\"","v":"cctctcaacactggttttttctcgacctcgagacaaat"},38,"-R",{"$f":"RIGHT(C51,4)&\"ccagtgttgagagg\"&seqrecom(C51)&\"cggtgtttcgtcctttcc\"","v":"ccagtgttgagaggcggtgtttcgtcctttcc"},null,32]
[49,null,null,"-F",{"$f":"\"cctctcaacactgg\"&seqrecom(C52)&\"ttttttctcgacctcgagacaaat\"","v":"cctctcaacactggttttttctcgacctcgagacaaat"},38,"-R",{"$f":"RIGHT(C52,4)&\"ccagtgttgagagg\"&seqrecom(C52)&\"cggtgtttcgtcctttcc\"","v":"ccagtgttgagaggcggtgtttcgtcctttcc"},null,32]
[50,null,null,"-F",{"$f":"\"cctctcaacactgg\"&seqrecom(C53)&\"ttttttctcgacctcgagacaaat\"","v":"cctctcaacactggttttttctcgacctcgagacaaat"},38,"-R",{"$f":"RIGHT(C53,4)&\"ccagtgttgagagg\"&seqrecom(C53)&\"cggtgtttcgtcctttcc\"","v":"ccagtgttgagaggcggtgtttcgtcctttcc"},null,32]
[51,null,null,"-F",{"$f":"\"cctctcaacactgg\"&seqrecom(C54)&\"ttttttctcgacctcgagacaaat\"","v":"cctctcaacactggttttttctcgacctcgagacaaat"},38,"-R",{"$f":"RIGHT(C54,4)&\"ccagtgttgagagg\"&seqrecom(C54)&\"cggtgtttcgtcctttcc\"","v":"ccagtgttgagaggcggtgtttcgtcctttcc"},null,32]
[52,null,null,"-F",{"$f":"\"cctctcaacactgg\"&seqrecom(C55)&\"ttttttctcgacctcgagacaaat\"","v":"cctctcaacactggttttttctcgacctcgagacaaat"},38,"-R",{"$f":"RIGHT(C55,4)&\"ccagtgttgagagg\"&seqrecom(C55)&\"cggtgtttcgtcctttcc\"","v":"ccagtgttgagaggcggtgtttcgtcctttcc"},null,32]
[53,null,null,"-F",{"$f":"\"cctctcaacactgg\"&seqrecom(C56)&\"ttttttctcgacctcgagacaaat\"","v":"cctctcaacactggttttttctcgacctcgagacaaat"},38,"-R",{"$f":"RIGHT(C56,4)&\"ccagtgttgagagg\"&seqrecom(C56)&\"cggtgtttcgtcctttcc\"","v":"ccagtgttgagaggcggtgtttcgtcctttcc"},null,32]
[54,null,null,"-F",{"$f":"\"cctctcaacactgg\"&seqrecom(C57)&\"ttttttctcgacctcgagacaaat\"","v":"cctctcaacactggttttttctcgacctcgagacaaat"},38,"-R",{"$f":"RIGHT(C57,4)&\"ccagtgttgagagg\"&seqrecom(C57)&\"cggtgtttcgtcctttcc\"","v":"ccagtgttgagaggcggtgtttcgtcctttcc"},null,32]
[55,null,null,"-F",{"$f":"\"cctctcaacactgg\"&seqrecom(C58)&\"ttttttctcgacctcgagacaaat\"","v":"cctctcaacactggttttttctcgacctcgagacaaat"},38,"-R",{"$f":"RIGHT(C58,4)&\"ccagtgttgagagg\"&seqrecom(C58)&\"cggtgtttcgtcctttcc\"","v":"ccagtgttgagaggcggtgtttcgtcctttcc"},null,32]
[56,null,null,"-F",{"$f":"\"cctctcaacactgg\"&seqrecom(C59)&\"ttttttctcgacctcgagacaaat\"","v":"cctctcaacactggttttttctcgacctcgagacaaat"},38,"-R",{"$f":"RIGHT(C59,4)&\"ccagtgttgagagg\"&seqrecom(C59)&\"cggtgtttcgtcctttcc\"","v":"ccagtgttgagaggcggtgtttcgtcctttcc"},null,32]
[57,null,null,"-F",{"$f":"\"cctctcaacactgg\"&seqrecom(C60)&\"ttttttctcgacctcgagacaaat\"","v":"cctctcaacactggttttttctcgacctcgagacaaat"},38,"-R",{"$f":"RIGHT(C60,4)&\"ccagtgttgagagg\"&seqrecom(C60)&\"cggtgtttcgtcctttcc\"","v":"ccagtgttgagaggcggtgtttcgtcctttcc"},null,32]
[58,null,null,"-F",{"$f":"\"cctctcaacactgg\"&seqrecom(C61)&\"ttttttctcgacctcgagacaaat\"","v":"cctctcaacactggttttttctcgacctcgagacaaat"},38,"-R",{"$f":"RIGHT(C61,4)&\"ccagtgttgagagg\"&seqrecom(C61)&\"cggtgtttcgtcctttcc\"","v":"ccagtgttgagaggcggtgtttcgtcctttcc"},null,32]
[59,null,null,"-F",{"$f":"\"cctctcaacactgg\"&seqrecom(C62)&\"ttttttctcgacctcgagacaaat\"","v":"cctctcaacactggttttttctcgacctcgagacaaat"},38,"-R",{"$f":"RIGHT(C62,4)&\"ccagtgttgagagg\"&seqrecom(C62)&\"cggtgtttcgtcctttcc\"","v":"ccagtgttgagaggcggtgtttcgtcctttcc"},null,32]
[60,null,null,"-F",{"$f":"\"cctctcaacactgg\"&seqrecom(C63)&\"ttttttctcgacctcgagacaaat\"","v":"cctctcaacactggttttttctcgacctcgagacaaat"},38,"-R",{"$f":"RIGHT(C63,4)&\"ccagtgttgagagg\"&seqrecom(C63)&\"cggtgtttcgtcctttcc\"","v":"ccagtgttgagaggcggtgtttcgtcctttcc"},null,32]
[61,null,null,"-F",{"$f":"\"cctctcaacactgg\"&seqrecom(C64)&\"ttttttctcgacctcgagacaaat\"","v":"cctctcaacactggttttttctcgacctcgagacaaat"},38,"-R",{"$f":"RIGHT(C64,4)&\"ccagtgttgagagg\"&seqrecom(C64)&\"cggtgtttcgtcctttcc\"","v":"ccagtgttgagaggcggtgtttcgtcctttcc"},null,32]
[62,null,null,"-F",{"$f":"\"cctctcaacactgg\"&seqrecom(C65)&\"ttttttctcgacctcgagacaaat\"","v":"cctctcaacactggttttttctcgacctcgagacaaat"},38,"-R",{"$f":"RIGHT(C65,4)&\"ccagtgttgagagg\"&seqrecom(C65)&\"cggtgtttcgtcctttcc\"","v":"ccagtgttgagaggcggtgtttcgtcctttcc"},null,32]
[63,null,null,"-F",{"$f":"\"cctctcaacactgg\"&seqrecom(C66)&\"ttttttctcgacctcgagacaaat\"","v":"cctctcaacactggttttttctcgacctcgagacaaat"},38,"-R",{"$f":"RIGHT(C66,4)&\"ccagtgttgagagg\"&seqrecom(C66)&\"cggtgtttcgtcctttcc\"","v":"ccagtgttgagaggcggtgtttcgtcctttcc"},null,32]
[64,null,null,"-F",{"$f":"\"cctctcaacactgg\"&seqrecom(C67)&\"ttttttctcgacctcgagacaaat\"","v":"cctctcaacactggttttttctcgacctcgagacaaat"},38,"-R",{"$f":"RIGHT(C67,4)&\"ccagtgttgagagg\"&seqrecom(C67)&\"cggtgtttcgtcctttcc\"","v":"ccagtgttgagaggcggtgtttcgtcctttcc"},null,32]
[65,null,null,{"$f":"B68&\"-F\"","v":"-F"},{"$f":"\"cctctcaacactgg\"&seqrecom(C68)&\"ttttttctcgacctcgagacaaat\"","v":"cctctcaacactggttttttctcgacctcgagacaaat"},{"$f":"LEN(E68)","v":38},{"$f":"B68&\"-R\"","v":"-R"},{"$f":"RIGHT(C68,4)&\"ccagtgttgagagg\"&seqrecom(C68)&\"cggtgtttcgtcctttcc\"","v":"ccagtgttgagaggcggtgtttcgtcctttcc"},null,{"$f":"LEN(H68)","v":32}]
[66,null,null,"-F",{"$f":"\"cctctcaacactgg\"&seqrecom(C69)&\"ttttttctcgacctcgagacaaat\"","v":"cctctcaacactggttttttctcgacctcgagacaaat"},38,"-R",{"$f":"RIGHT(C69,4)&\"ccagtgttgagagg\"&seqrecom(C69)&\"cggtgtttcgtcctttcc\"","v":"ccagtgttgagaggcggtgtttcgtcctttcc"},null,32]
[67,null,null,"-F",{"$f":"\"cctctcaacactgg\"&seqrecom(C70)&\"ttttttctcgacctcgagacaaat\"","v":"cctctcaacactggttttttctcgacctcgagacaaat"},38,"-R",{"$f":"RIGHT(C70,4)&\"ccagtgttgagagg\"&seqrecom(C70)&\"cggtgtttcgtcctttcc\"","v":"ccagtgttgagaggcggtgtttcgtcctttcc"},null,32]
[68,null,null,"-F",{"$f":"\"cctctcaacactgg\"&seqrecom(C71)&\"ttttttctcgacctcgagacaaat\"","v":"cctctcaacactggttttttctcgacctcgagacaaat"},38,"-R",{"$f":"RIGHT(C71,4)&\"ccagtgttgagagg\"&seqrecom(C71)&\"cggtgtttcgtcctttcc\"","v":"ccagtgttgagaggcggtgtttcgtcctttcc"},null,32]
[69,null,null,"-F",{"$f":"\"cctctcaacactgg\"&seqrecom(C72)&\"ttttttctcgacctcgagacaaat\"","v":"cctctcaacactggttttttctcgacctcgagacaaat"},38,"-R",{"$f":"RIGHT(C72,4)&\"ccagtgttgagagg\"&seqrecom(C72)&\"cggtgtttcgtcctttcc\"","v":"ccagtgttgagaggcggtgtttcgtcctttcc"},null,32]
[70,null,null,"-F",{"$f":"\"cctctcaacactgg\"&seqrecom(C73)&\"ttttttctcgacctcgagacaaat\"","v":"cctctcaacactggttttttctcgacctcgagacaaat"},38,"-R",{"$f":"RIGHT(C73,4)&\"ccagtgttgagagg\"&seqrecom(C73)&\"cggtgtttcgtcctttcc\"","v":"ccagtgttgagaggcggtgtttcgtcctttcc"},null,32]
[71,null,null,"-F",{"$f":"\"cctctcaacactgg\"&seqrecom(C74)&\"ttttttctcgacctcgagacaaat\"","v":"cctctcaacactggttttttctcgacctcgagacaaat"},38,"-R",{"$f":"RIGHT(C74,4)&\"ccagtgttgagagg\"&seqrecom(C74)&\"cggtgtttcgtcctttcc\"","v":"ccagtgttgagaggcggtgtttcgtcctttcc"},null,32]
[72,null,null,"-F",{"$f":"\"cctctcaacactgg\"&seqrecom(C75)&\"ttttttctcgacctcgagacaaat\"","v":"cctctcaacactggttttttctcgacctcgagacaaat"},38,"-R",{"$f":"RIGHT(C75,4)&\"ccagtgttgagagg\"&seqrecom(C75)&\"cggtgtttcgtcctttcc\"","v":"ccagtgttgagaggcggtgtttcgtcctttcc"},null,32]
[73,null,null,"-F",{"$f":"\"cctctcaacactgg\"&seqrecom(C76)&\"ttttttctcgacctcgagacaaat\"","v":"cctctcaacactggttttttctcgacctcgagacaaat"},38,"-R",{"$f":"RIGHT(C76,4)&\"ccagtgttgagagg\"&seqrecom(C76)&\"cggtgtttcgtcctttcc\"","v":"ccagtgttgagaggcggtgtttcgtcctttcc"},null,32]
[74,null,null,"-F",{"$f":"\"cctctcaacactgg\"&seqrecom(C77)&\"ttttttctcgacctcgagacaaat\"","v":"cctctcaacactggttttttctcgacctcgagacaaat"},38,"-R",{"$f":"RIGHT(C77,4)&\"ccagtgttgagagg\"&seqrecom(C77)&\"cggtgtttcgtcctttcc\"","v":"ccagtgttgagaggcggtgtttcgtcctttcc"},null,32]
[75,null,null,"-F",{"$f":"\"cctctcaacactgg\"&seqrecom(C78)&\"ttttttctcgacctcgagacaaat\"","v":"cctctcaacactggttttttctcgacctcgagacaaat"},38,"-R",{"$f":"RIGHT(C78,4)&\"ccagtgttgagagg\"&seqrecom(C78)&\"cggtgtttcgtcctttcc\"","v":"ccagtgttgagaggcggtgtttcgtcctttcc"},null,32]
[76,null,null,"-F",{"$f":"\"cctctcaacactgg\"&seqrecom(C79)&\"ttttttctcgacctcgagacaaat\"","v":"cctctcaacactggttttttctcgacctcgagacaaat"},38,"-R",{"$f":"RIGHT(C79,4)&\"ccagtgttgagagg\"&seqrecom(C79)&\"cggtgtttcgtcctttcc\"","v":"ccagtgttgagaggcggtgtttcgtcctttcc"},null,32]
[77,null,null,"-F",{"$f":"\"cctctcaacactgg\"&seqrecom(C80)&\"ttttttctcgacctcgagacaaat\"","v":"cctctcaacactggttttttctcgacctcgagacaaat"},38,"-R",{"$f":"RIGHT(C80,4)&\"ccagtgttgagagg\"&seqrecom(C80)&\"cggtgtttcgtcctttcc\"","v":"ccagtgttgagaggcggtgtttcgtcctttcc"},null,32]
[78,null,null,"-F",{"$f":"\"cctctcaacactgg\"&seqrecom(C81)&\"ttttttctcgacctcgagacaaat\"","v":"cctctcaacactggttttttctcgacctcgagacaaat"},38,"-R",{"$f":"RIGHT(C81,4)&\"ccagtgttgagagg\"&seqrecom(C81)&\"cggtgtttcgtcctttcc\"","v":"ccagtgttgagaggcggtgtttcgtcctttcc"},null,32]
[79,null,null,"-F",{"$f":"\"cctctcaacactgg\"&seqrecom(C82)&\"ttttttctcgacctcgagacaaat\"","v":"cctctcaacactggttttttctcgacctcgagacaaat"},38,"-R",{"$f":"RIGHT(C82,4)&\"ccagtgttgagagg\"&seqrecom(C82)&\"cggtgtttcgtcctttcc\"","v":"ccagtgttgagaggcggtgtttcgtcctttcc"},null,32]
[80,null,null,"-F",{"$f":"\"cctctcaacactgg\"&seqrecom(C83)&\"ttttttctcgacctcgagacaaat\"","v":"cctctcaacactggttttttctcgacctcgagacaaat"},38,"-R",{"$f":"RIGHT(C83,4)&\"ccagtgttgagagg\"&seqrecom(C83)&\"cggtgtttcgtcctttcc\"","v":"ccagtgttgagaggcggtgtttcgtcctttcc"},null,32]
[81,null,null,"-F",{"$f":"\"cctctcaacactgg\"&seqrecom(C84)&\"ttttttctcgacctcgagacaaat\"","v":"cctctcaacactggttttttctcgacctcgagacaaat"},38,"-R",{"$f":"RIGHT(C84,4)&\"ccagtgttgagagg\"&seqrecom(C84)&\"cggtgtttcgtcctttcc\"","v":"ccagtgttgagaggcggtgtttcgtcctttcc"},null,32]
[82,null,null,"-F",{"$f":"\"cctctcaacactgg\"&seqrecom(C85)&\"ttttttctcgacctcgagacaaat\"","v":"cctctcaacactggttttttctcgacctcgagacaaat"},38,"-R",{"$f":"RIGHT(C85,4)&\"ccagtgttgagagg\"&seqrecom(C85)&\"cggtgtttcgtcctttcc\"","v":"ccagtgttgagaggcggtgtttcgtcctttcc"},null,32]
[83,null,null,"-F",{"$f":"\"cctctcaacactgg\"&seqrecom(C86)&\"ttttttctcgacctcgagacaaat\"","v":"cctctcaacactggttttttctcgacctcgagacaaat"},38,"-R",{"$f":"RIGHT(C86,4)&\"ccagtgttgagagg\"&seqrecom(C86)&\"cggtgtttcgtcctttcc\"","v":"ccagtgttgagaggcggtgtttcgtcctttcc"},null,32]
[84,null,null,"-F",{"$f":"\"cctctcaacactgg\"&seqrecom(C87)&\"ttttttctcgacctcgagacaaat\"","v":"cctctcaacactggttttttctcgacctcgagacaaat"},38,"-R",{"$f":"RIGHT(C87,4)&\"ccagtgttgagagg\"&seqrecom(C87)&\"cggtgtttcgtcctttcc\"","v":"ccagtgttgagaggcggtgtttcgtcctttcc"},null,32]
[85,null,null,"-F",{"$f":"\"cctctcaacactgg\"&seqrecom(C88)&\"ttttttctcgacctcgagacaaat\"","v":"cctctcaacactggttttttctcgacctcgagacaaat"},38,"-R",{"$f":"RIGHT(C88,4)&\"ccagtgttgagagg\"&seqrecom(C88)&\"cggtgtttcgtcctttcc\"","v":"ccagtgttgagaggcggtgtttcgtcctttcc"},null,32]
[86,null,null,"-F",{"$f":"\"cctctcaacactgg\"&seqrecom(C89)&\"ttttttctcgacctcgagacaaat\"","v":"cctctcaacactggttttttctcgacctcgagacaaat"},38,"-R",{"$f":"RIGHT(C89,4)&\"ccagtgttgagagg\"&seqrecom(C89)&\"cggtgtttcgtcctttcc\"","v":"ccagtgttgagaggcggtgtttcgtcctttcc"},null,32]
[87,null,null,"-F",{"$f":"\"cctctcaacactgg\"&seqrecom(C90)&\"ttttttctcgacctcgagacaaat\"","v":"cctctcaacactggttttttctcgacctcgagacaaat"},38,"-R",{"$f":"RIGHT(C90,4)&\"ccagtgttgagagg\"&seqrecom(C90)&\"cggtgtttcgtcctttcc\"","v":"ccagtgttgagaggcggtgtttcgtcctttcc"},null,32]
[88,null,null,"-F",{"$f":"\"cctctcaacactgg\"&seqrecom(C91)&\"ttttttctcgacctcgagacaaat\"","v":"cctctcaacactggttttttctcgacctcgagacaaat"},38,"-R",{"$f":"RIGHT(C91,4)&\"ccagtgttgagagg\"&seqrecom(C91)&\"cggtgtttcgtcctttcc\"","v":"ccagtgttgagaggcggtgtttcgtcctttcc"},null,32]
[89,null,null,"-F",{"$f":"\"cctctcaacactgg\"&seqrecom(C92)&\"ttttttctcgacctcgagacaaat\"","v":"cctctcaacactggttttttctcgacctcgagacaaat"},38,"-R",{"$f":"RIGHT(C92,4)&\"ccagtgttgagagg\"&seqrecom(C92)&\"cggtgtttcgtcctttcc\"","v":"ccagtgttgagaggcggtgtttcgtcctttcc"},null,32]
[90,null,null,"-F",{"$f":"\"cctctcaacactgg\"&seqrecom(C93)&\"ttttttctcgacctcgagacaaat\"","v":"cctctcaacactggttttttctcgacctcgagacaaat"},38,"-R",{"$f":"RIGHT(C93,4)&\"ccagtgttgagagg\"&seqrecom(C93)&\"cggtgtttcgtcctttcc\"","v":"ccagtgttgagaggcggtgtttcgtcctttcc"},null,32]
[91,null,null,"-F",{"$f":"\"cctctcaacactgg\"&seqrecom(C94)&\"ttttttctcgacctcgagacaaat\"","v":"cctctcaacactggttttttctcgacctcgagacaaat"},38,"-R",{"$f":"RIGHT(C94,4)&\"ccagtgttgagagg\"&seqrecom(C94)&\"cggtgtttcgtcctttcc\"","v":"ccagtgttgagaggcggtgtttcgtcctttcc"},null,32]
[92,null,null,"-F",{"$f":"\"cctctcaacactgg\"&seqrecom(C95)&\"ttttttctcgacctcgagacaaat\"","v":"cctctcaacactggttttttctcgacctcgagacaaat"},38,"-R",{"$f":"RIGHT(C95,4)&\"ccagtgttgagagg\"&seqrecom(C95)&\"cggtgtttcgtcctttcc\"","v":"ccagtgttgagaggcggtgtttcgtcctttcc"},null,32]
[93,null,null,"-F",{"$f":"\"cctctcaacactgg\"&seqrecom(C96)&\"ttttttctcgacctcgagacaaat\"","v":"cctctcaacactggttttttctcgacctcgagacaaat"},38,"-R",{"$f":"RIGHT(C96,4)&\"ccagtgttgagagg\"&seqrecom(C96)&\"cggtgtttcgtcctttcc\"","v":"ccagtgttgagaggcggtgtttcgtcctttcc"},null,32]
[94,null,null,"-F",{"$f":"\"cctctcaacactgg\"&seqrecom(C97)&\"ttttttctcgacctcgagacaaat\"","v":"cctctcaacactggttttttctcgacctcgagacaaat"},38,"-R",{"$f":"RIGHT(C97,4)&\"ccagtgttgagagg\"&seqrecom(C97)&\"cggtgtttcgtcctttcc\"","v":"ccagtgttgagaggcggtgtttcgtcctttcc"},null,32]
[95,null,null,"-F",{"$f":"\"cctctcaacactgg\"&seqrecom(C98)&\"ttttttctcgacctcgagacaaat\"","v":"cctctcaacactggttttttctcgacctcgagacaaat"},38,"-R",{"$f":"RIGHT(C98,4)&\"ccagtgttgagagg\"&seqrecom(C98)&\"cggtgtttcgtcctttcc\"","v":"ccagtgttgagaggcggtgtttcgtcctttcc"},null,32]
[96,null,null,"-F",{"$f":"\"cctctcaacactgg\"&seqrecom(C99)&\"ttttttctcgacctcgagacaaat\"","v":"cctctcaacactggttttttctcgacctcgagacaaat"},38,"-R",{"$f":"RIGHT(C99,4)&\"ccagtgttgagagg\"&seqrecom(C99)&\"cggtgtttcgtcctttcc\"","v":"ccagtgttgagaggcggtgtttcgtcctttcc"},null,32]
[97,null,null,"-F",{"$f":"\"cctctcaacactgg\"&seqrecom(C100)&\"ttttttctcgacctcgagacaaat\"","v":"cctctcaacactggttttttctcgacctcgagacaaat"},38,"-R",{"$f":"RIGHT(C100,4)&\"ccagtgttgagagg\"&seqrecom(C100)&\"cggtgtttcgtcctttcc\"","v":"ccagtgttgagaggcggtgtttcgtcctttcc"},null,32]
[98,null,null,"-F",{"$f":"\"cctctcaacactgg\"&seqrecom(C101)&\"ttttttctcgacctcgagacaaat\"","v":"cctctcaacactggttttttctcgacctcgagacaaat"},38,"-R",{"$f":"RIGHT(C101,4)&\"ccagtgttgagagg\"&seqrecom(C101)&\"cggtgtttcgtcctttcc\"","v":"ccagtgttgagaggcggtgtttcgtcctttcc"},null,32]
[99,null,null,"-F",{"$f":"\"cctctcaacactgg\"&seqrecom(C102)&\"ttttttctcgacctcgagacaaat\"","v":"cctctcaacactggttttttctcgacctcgagacaaat"},38,"-R",{"$f":"RIGHT(C102,4)&\"ccagtgttgagagg\"&seqrecom(C102)&\"cggtgtttcgtcctttcc\"","v":"ccagtgttgagaggcggtgtttcgtcctttcc"},null,32]
[100,null,null,"-F",{"$f":"\"cctctcaacactgg\"&seqrecom(C103)&\"ttttttctcgacctcgagacaaat\"","v":"cctctcaacactggttttttctcgacctcgagacaaat"},38,"-R",{"$f":"RIGHT(C103,4)&\"ccagtgttgagagg\"&seqrecom(C103)&\"cggtgtttcgtcctttcc\"","v":"ccagtgttgagaggcggtgtttcgtcctttcc"},null,32]